fUST/lending_fUST_20250311
["ID","MTS","AMOUNT","RATE_DAILY","PERIOD"]
[355867525,1741653048839,-151.0,0.00047915,30]
[355867526,1741653048863,-151.0,0.00047915,90]
[355867527,1741653048885,-169.122812,0.00047915,120]
[355867528,1741653048906,-169.122812,0.00047915,120]
[355867529,1741653048928,-190.291216,0.00047915,120]
[355867530,1741653048949,-190.291216,0.00047915,120]
[355867531,1741653048971,-560.607444,0.00047915,120]
[355867532,1741653048997,-560.607444,0.00047915,120]
[355867533,1741653049016,-500.0,0.00047932,6]
[355867534,1741653049040,-1000.0,0.00047945,120]
[355867535,1741653049051,-6000.0,0.00047945,10]
[355867536,1741653049061,-176.67115255,0.00047968,10]
[355867537,1741653049072,-500.0,0.00047973,10]
[355867538,1741653049082,-75117.62594884,0.00047987,30]
[355867539,1741653049092,-151.0,0.00047996,120]
[355867540,1741653049102,-151.0,0.00047996,120]
[355867541,1741653049458,-151.0,0.00047996,120]
[355867542,1741653049476,-151.0,0.00047996,120]
[355867543,1741653049488,-560.607444,0.00047996,120]
[355867544,1741653049502,-560.607444,0.00047996,120]
[355867545,1741653049513,-2182.9,0.00047996,2]
[355867546,1741653049523,-2182.9,0.00047996,2]
[355867547,1741653049534,-2182.9,0.00047996,2]
[355867548,1741653049546,-2182.9,0.00047996,2]
[355867549,1741653049558,-2182.9,0.00047996,2]
[355867550,1741653049569,-2182.9,0.00047996,2]
[355867551,1741653049581,-2182.9,0.00047996,2]
[355867552,1741653049592,-2182.9,0.00047996,2]
[355867553,1741653049605,-2182.9,0.00047996,2]
[355867554,1741653049618,-2182.9,0.00047996,2]
[355867555,1741653049635,-2182.9,0.00047996,2]
[355867556,1741653049648,-2182.9,0.00047996,2]
[355867557,1741653049664,-2182.9,0.00047996,2]
[355867558,1741653049676,-2182.9,0.00047996,2]
[355867559,1741653049688,-2182.9,0.00047996,2]
[355867560,1741653049701,-2182.9,0.00047996,2]
[355867561,1741653049713,-2182.9,0.00047996,2]
[355867562,1741653049724,-2182.9,0.00047996,2]
[355867563,1741653049735,-2182.9,0.00047996,2]
[355867564,1741653049753,-2182.9,0.00047996,2]
[355867565,1741653049766,-2182.9,0.00047996,2]
[355867566,1741653049777,-2182.9,0.00047996,2]
[355867567,1741653049788,-2182.9,0.00047996,2]
[355867568,1741653049799,-2183.13624811,0.00047996,2]
[355867569,1741653049810,-600.0,0.00047996,2]
[355867570,1741653049820,-500.0,0.00047997,120]
[355867571,1741653049831,-3000.0,0.00047998,120]
[355867572,1741653049841,-151.0,0.00047998,120]
[355867573,1741653049852,-151.0,0.00047998,120]
[355867574,1741653049862,-151.0,0.00047998,90]
[355867575,1741653049872,-1000.0,0.00047999,120]
[355867576,1741653049882,-151.0,0.00047999,120]
[355867577,1741653049893,-151.0,0.00047999,120]
[355867578,1741653049903,-151.0,0.00047999,30]
[355867579,1741653049912,-151.0,0.00047999,30]
[355867580,1741653049922,-169.122812,0.00047999,120]
[355867581,1741653049932,-169.122812,0.00047999,120]
[355867582,1741653049943,-190.291216,0.00047999,120]
[355867583,1741653049954,-190.291216,0.00047999,120]
[355867584,1741653049964,-2500.0,0.00047999,120]
[355867585,1741653049975,-127.99547356,0.00048,120]
[355867586,1741653049987,-2000.0,0.00048,30]
[355867587,1741653050000,-2000.0,0.00048,120]
[355867588,1741653050011,-3927.36132135,0.00048,120]
[355867589,1741653050021,-169.058845,0.00048,120]
[355867590,1741653050032,-169.058845,0.00048,120]
[355867591,1741653050042,-83745.23716813,0.00048,60]
[355867592,1741653050054,-151.0,0.00048,120]
[355867593,1741653050065,-151.0,0.00048,120]
[355867594,1741653050076,-151.0,0.00048,30]
[355867595,1741653050087,-151.0,0.00048,30]
[355867596,1741653050098,-289.833614,0.00048,90]
[355867597,1741653050108,-151.0,0.00048,28]
[355867598,1741653050118,-151.0,0.00048,21]
[355867599,1741653050129,-151.0,0.00048,23]
[355867600,1741653050140,-151.0,0.00048,29]
[355867601,1741653050150,-169.122812,0.00048,120]
[355867602,1741653050160,-169.122812,0.00048,120]
[355867603,1741653050171,-190.291216,0.00048,120]
[355867604,1741653050180,-190.291216,0.00048,120]
[355867605,1741653050195,-606.36,0.00048,30]
[355867606,1741653050204,-560.607444,0.00048,120]
[355867607,1741653050215,-560.607444,0.00048,120]
[355867608,1741653050225,-1000.0,0.00048,15]
[355867609,1741653050246,-3845.82472886,0.00048,3]
[355867610,1741653050256,-1101.54512701,0.00048,120]
[355867611,1741653050266,-22292.24957418,0.00048,120]
[355867612,1741653050276,-169.058845,0.00048005,120]
[355867613,1741653050286,-169.058845,0.00048005,120]
[355867614,1741653050297,-169.058845,0.00048005,120]
[355867615,1741653050308,-169.058845,0.00048005,120]
[355867616,1741653050319,-151.0,0.00048005,120]
[355867617,1741653050329,-151.0,0.00048005,120]
[355867618,1741653050340,-151.0,0.00048005,120]
[355867619,1741653050351,-151.0,0.00048005,120]
[355867620,1741653050361,-151.0,0.00048005,30]
[355867621,1741653050371,-200.429066,0.00048005,30]
[355867622,1741653050380,-163.674283,0.00048005,120]
[355867623,1741653050390,-169.122812,0.00048005,120]
[355867624,1741653050400,-169.122812,0.00048005,120]
[355867625,1741653050410,-190.291216,0.00048005,120]
[355867626,1741653050420,-190.291216,0.00048005,120]
[355867627,1741653050431,-560.607444,0.00048005,120]
[355867628,1741653050442,-560.607443,0.00048005,120]
[355867629,1741653050452,-151.0,0.00048014,120]
[355867630,1741653050462,-151.0,0.00048014,120]
[355867631,1741653050472,-235.97542,0.00048015,120]
[355867632,1741653050482,-151.0,0.00048015,120]
[355867633,1741653050494,-151.0,0.00048015,120]
[355867634,1741653050504,-151.0,0.00048015,120]
[355867635,1741653050513,-151.0,0.00048015,120]
[355867636,1741653050523,-169.058845,0.00048015,120]
[355867637,1741653050533,-169.058845,0.00048015,120]
[355867638,1741653050543,-151.0,0.00048015,120]
[355867639,1741653050553,-151.0,0.00048015,120]
[355867640,1741653050563,-151.0,0.00048015,120]
[355867641,1741653050573,-151.0,0.00048015,120]
[355867642,1741653050583,-151.0,0.00048015,30]
[355867643,1741653050593,-163.674275,0.00048015,120]
[355867644,1741653050604,-169.122812,0.00048015,120]
[355867645,1741653050614,-169.12281,0.00048015,120]
[355867646,1741653050635,-190.291216,0.00048015,120]
[355867647,1741653050649,-190.291206,0.00048015,120]
[355867648,1741653050659,-168.3888056,0.00048021,2]
[355867649,1741653050669,-8757.7,0.00048048,9]
[355867650,1741653050679,-158.47381,0.0004805,90]
[355867651,1741653050695,-500.0,0.00048068,6]
[355867652,1741653050723,-151.0,0.00048073,30]
[355867653,1741653050739,-759.54,0.000481,30]
[355867654,1741653050753,-158.68167274,0.00048164,120]
[355867655,1741653050764,-150.0,0.00048197,2]
[355867656,1741653050775,-150.0,0.00048197,2]
[355867657,1741653050785,-1000.0,0.000482,57]
[355867658,1741653050796,-500.0,0.00048205,6]
[355867659,1741653050807,-500.0,0.00048219,120]
[355867660,1741653050818,-500.0,0.00048271,120]
[355867661,1741653050828,-3500.0,0.00048276,120]
[355867662,1741653050839,-151.0,0.0004828,120]
[355867663,1741653050850,-151.0,0.0004828,120]
[355867664,1741653050862,-151.0,0.0004829,120]
[355867665,1741653050872,-151.0,0.0004829,120]
[355867666,1741653050883,-169.058845,0.0004829,120]
[355867667,1741653050893,-169.058845,0.0004829,120]
[355867668,1741653050903,-151.0,0.0004829,120]
[355867669,1741653050914,-207.744303,0.0004829,120]
[355867670,1741653050925,-151.0,0.0004829,30]
[355867671,1741653050936,-151.0,0.000483,120]
[355867672,1741653050946,-276.731463,0.000483,120]
[355867673,1741653050956,-169.058845,0.000483,120]
[355867674,1741653050966,-169.058845,0.000483,120]
[355867675,1741653050977,-151.0,0.000483,120]
[355867676,1741653050988,-151.0,0.000483,120]
[355867677,1741653051001,-151.0,0.000483,120]
[355867678,1741653051013,-21028.79376408,0.000483,120]
[355867679,1741653051023,-500.0,0.00048342,6]
[355867680,1741653051033,-500.0,0.00048373,10]
[355867681,1741653051044,-500.0,0.00048373,10]
[355867682,1741653051054,-295.61698,0.00048377,10]
[355867683,1741653051064,-185.087068,0.00048378,120]
[355867684,1741653051074,-151.0,0.0004838,120]
[355867685,1741653051084,-169.058845,0.0004838,120]
[355867686,1741653051095,-169.058845,0.0004838,120]
[355867687,1741653051105,-151.0,0.0004838,120]
[355867688,1741653051115,-151.0,0.0004838,120]
[355867689,1741653051125,-189.387319,0.0004838,120]
[355867690,1741653051136,-151.0,0.0004839,120]
[355867691,1741653051147,-169.058845,0.0004839,120]
[355867692,1741653051158,-169.058845,0.0004839,120]
[355867693,1741653051168,-1216599.999999,0.00048398,120]
[355867694,1741653051179,-151.0,0.000484,26]
[355867695,1741653051190,-151.0,0.000484,29]
[355867696,1741653051201,-151.0,0.000484,120]
[355867697,1741653051211,-151.0,0.000484,120]
[355867698,1741653051222,-870.53787575,0.000484,120]
[355867699,1741653051233,-539.66872395,0.00048422,28]
[355867700,1741653051246,-151.0,0.0004847,120]
[355867701,1741653051257,-169.058845,0.0004847,120]
[355867702,1741653051269,-169.058845,0.0004847,120]
[355867703,1741653051279,-24037.63307654,0.0004848,7]
[355867704,1741653051290,-151.0,0.0004848,120]
[355867705,1741653051300,-169.058845,0.0004848,120]
[355867706,1741653051310,-169.058854,0.0004848,120]
[355867707,1741653051320,-151.0,0.0004848,120]
[355867708,1741653051331,-600.0,0.00048486,2]
[355867709,1741653051341,-1000.0,0.0004849,120]
[355867710,1741653051351,-1000.0,0.0004849,120]
[355867711,1741653051362,-405.0,0.0004849,30]
[355867712,1741653051372,-5219.5,0.0004849,120]
[355867713,1741653051383,-5219.5,0.0004849,120]
[355867714,1741653051394,-5219.5,0.0004849,120]
[355867715,1741653051405,-5219.5,0.0004849,120]
[355867716,1741653051415,-5219.5,0.0004849,120]
[355867717,1741653051425,-5219.5,0.0004849,120]
[355867718,1741653051436,-5219.5,0.0004849,120]
[355867719,1741653051446,-5219.5,0.0004849,120]
[355867720,1741653051457,-5219.5,0.0004849,120]
[355867721,1741653051467,-5219.5,0.0004849,120]
[355867722,1741653051477,-151.0,0.0004849,120]
[355867723,1741653051487,-343.36790954,0.00048498,2]
[355867724,1741653051500,-339967.37274155,0.000485,120]
[355867725,1741653051510,-1476.495648,0.0004852,20]
[355867726,1741653051520,-677.0505853,0.00048531,91]
[355867727,1741653051529,-1000.0,0.0004854,20]
[355867728,1741653051539,-500.0,0.00048545,120]
[355867729,1741653051550,-1000.0,0.0004856,20]
[355867730,1741653051560,-352.0,0.00048565,30]
[355867731,1741653051571,-316.0,0.00048565,30]
[355867732,1741653051581,-316.0,0.00048565,30]
[355867733,1741653051590,-316.0,0.00048565,30]
[355867734,1741653051600,-316.0,0.00048565,30]
[355867735,1741653051610,-316.0,0.00048565,30]
[355867736,1741653051623,-316.0,0.00048565,30]
[355867737,1741653051633,-316.0,0.00048565,30]
[355867738,1741653051643,-316.0,0.00048565,30]
[355867739,1741653051653,-316.0,0.00048565,30]
[355867740,1741653051665,-316.0,0.00048565,30]
[355867741,1741653051676,-174.61919141,0.00048569,2]
[355867742,1741653051686,-352.0,0.00048574,30]
[355867743,1741653051697,-352.0,0.00048574,30]
[355867744,1741653051708,-352.0,0.00048574,30]
[355867745,1741653051718,-352.0,0.00048574,30]
[355867746,1741653051728,-352.0,0.00048574,30]
[355867747,1741653051739,-352.0,0.00048574,30]
[355867748,1741653051754,-352.0,0.00048574,30]
[355867749,1741653051764,-352.0,0.00048574,30]
[355867750,1741653051774,-352.0,0.00048574,30]
[355867751,1741653051790,-1000.0,0.0004858,20]
[355867752,1741653051800,-3000.0,0.00048586,120]
[355867753,1741653051810,-3000.0,0.00048589,120]
[355867754,1741653051821,-151.0,0.000486,120]
[355867755,1741653051831,-17988.42419074,0.000486,120]
[355867756,1741653051842,-1000.0,0.000486,21]
[355867757,1741653051853,-1000.0,0.0004862,21]
[355867758,1741653051864,-677.0505853,0.00048631,94]
[355867759,1741653051874,-1000.0,0.0004864,21]
[355867760,1741653051885,-1000.0,0.0004866,21]
[355867761,1741653051895,-352.0,0.00048671,30]
[355867762,1741653051905,-352.0,0.00048671,30]
[355867763,1741653051915,-352.0,0.00048671,30]
[355867764,1741653051925,-352.0,0.00048671,30]
[355867765,1741653051935,-352.0,0.00048671,30]
[355867766,1741653051945,-352.0,0.00048671,30]
[355867767,1741653051956,-352.0,0.00048671,30]
[355867768,1741653051966,-352.0,0.00048671,30]
[355867769,1741653051976,-352.0,0.00048671,30]
[355867770,1741653051986,-352.0,0.00048671,30]
[355867771,1741653051998,-352.0,0.00048671,30]
[355867772,1741653052008,-352.0,0.00048671,30]
[355867773,1741653052017,-352.0,0.00048671,30]
[355867774,1741653052027,-181.81665588,0.00048671,30]
[355867775,1741653052037,-1000.0,0.0004868,21]
[355867776,1741653052047,-1074.463532,0.0004868,21]
[355867777,1741653052057,-406.02222481,0.0004869,30]
[355867778,1741653052067,-296.065594,0.00048698,120]
[355867779,1741653052077,-159.4,0.000487,120]
[355867780,1741653052087,-290.805,0.000487,30]
[355867781,1741653052097,-250.0,0.000487,30]
[355867782,1741653052107,-7834.01,0.000487,30]
[355867783,1741653052117,-606.36,0.000487,30]
[355867784,1741653052128,-1000.0,0.000487,21]
[355867785,1741653052137,-1000.0,0.000487,21]
[355867786,1741653052147,-1000.0,0.000487,57]
[355867787,1741653052158,-183.967461,0.000487,2]
[355867788,1741653052168,-250.0,0.000487,30]
[355867789,1741653052178,-677.0505853,0.00048731,94]
[355867790,1741653052189,-500.0,0.00048748,18]
[355867791,1741653052385,-500.0,0.00048767,120]
[355867792,1741653052395,-500.0,0.00048773,10]
[355867793,1741653052406,-500.0,0.00048788,2]
[355867794,1741653052416,-500.0,0.0004879,60]
[355867795,1741653052427,-158.68167274,0.00048795,120]
[355867796,1741653052436,-7188.49,0.00048796,120]
[355867797,1741653052446,-510.03155788,0.00048797,120]
[355867798,1741653052456,-10000.0,0.000488,39]
[355867799,1741653052465,-440310.57354213,0.000488,8]
[355867800,1741653052475,-765.46,0.000488,30]
[355867801,1741653052484,-536.05,0.000488,30]
[355867802,1741653052496,-164.93,0.000488,30]
[355867803,1741653052504,-657.52,0.000488,30]
[355867804,1741653052514,-759.54,0.000488,30]
[355867805,1741653052523,-150.45,0.000488,8]
[355867806,1741653052533,-150.45,0.000488,8]
[355867807,1741653052542,-203.86485185,0.000488,8]
[355867808,1741653052552,-268.18401044,0.000488,8]
[355867809,1741653052562,-205.00501808,0.000488,8]
[355867810,1741653052571,-150.45,0.000488,8]
[355867811,1741653052581,-150.45,0.000488,8]
[355867812,1741653052590,-150.45,0.000488,8]
[355867813,1741653052599,-152.16535786,0.000488,8]
[355867814,1741653052609,-500.0,0.000488,8]
[355867815,1741653052619,-500.0,0.000488,8]
[355867816,1741653052630,-500.0,0.000488,8]
[355867817,1741653052639,-500.0,0.000488,8]
[355867818,1741653052649,-500.0,0.000488,8]
[355867819,1741653052659,-500.0,0.000488,8]
[355867820,1741653052670,-500.0,0.000488,8]
[355867821,1741653052682,-500.0,0.000488,8]
[355867822,1741653052692,-500.0,0.000488,8]
[355867823,1741653052701,-500.0,0.000488,8]
[355867824,1741653052711,-500.0,0.000488,8]
[355867825,1741653052720,-500.0,0.000488,8]
[355867826,1741653052730,-500.0,0.000488,8]
[355867827,1741653052739,-500.0,0.000488,8]
[355867828,1741653052752,-500.0,0.000488,8]
[355867829,1741653052761,-590.56073626,0.000488,8]
[355867830,1741653052771,-1265.0,0.000488,8]
[355867831,1741653052780,-1265.0,0.000488,8]
[355867832,1741653052790,-1265.0,0.000488,8]
[355867833,1741653052799,-1265.0,0.000488,8]
[355867834,1741653052809,-1265.0,0.000488,8]
[355867835,1741653052819,-1265.0,0.000488,8]
[355867836,1741653052828,-1265.0,0.000488,8]
[355867837,1741653052838,-1265.0,0.000488,8]
[355867838,1741653052847,-1265.0,0.000488,8]
[355867839,1741653052857,-1265.0,0.000488,8]
[355867840,1741653052867,-1265.0,0.000488,8]
[355867841,1741653052876,-1265.0,0.000488,8]
[355867842,1741653052886,-1265.0,0.000488,8]
[355867843,1741653052895,-1265.0,0.000488,8]
[355867844,1741653052905,-1265.0,0.000488,8]
[355867845,1741653052915,-1265.0,0.000488,8]
[355867846,1741653052924,-1265.0,0.000488,8]
[355867847,1741653052933,-1265.0,0.000488,8]
[355867848,1741653052943,-1265.0,0.000488,8]
[355867849,1741653052952,-1273.0,0.000488,8]
[355867850,1741653052962,-150.45,0.000488,8]
[355867851,1741653052971,-150.45,0.000488,8]
[355867852,1741653052981,-276.78948267,0.000488,8]
[355867853,1741653052991,-150.45,0.000488,2]
[355867854,1741653053005,-500.0,0.000488,8]
[355867855,1741653053015,-697.34916461,0.000488,8]
[355867856,1741653053024,-150.45,0.000488,2]
[355867857,1741653053034,-150.45,0.000488,8]
[355867858,1741653053043,-150.45,0.000488,8]
[355867859,1741653053053,-262.23258298,0.000488,8]
[355867860,1741653053063,-158.0862398,0.000488,8]
[355867861,1741653053073,-150.45,0.000488,8]
[355867862,1741653053083,-150.45,0.000488,8]
[355867863,1741653053092,-196.56069104,0.000488,8]
[355867864,1741653053102,-500.0,0.000488,2]
[355867865,1741653053111,-500.0,0.000488,2]
[355867866,1741653053121,-500.0,0.000488,2]
[355867867,1741653053131,-500.0,0.000488,2]
[355867868,1741653053141,-500.0,0.000488,2]
[355867869,1741653053151,-500.0,0.000488,2]
[355867870,1741653053160,-500.0,0.000488,2]
[355867871,1741653053170,-500.0,0.000488,2]
[355867872,1741653053180,-500.0,0.000488,2]
[355867873,1741653053190,-500.0,0.000488,2]
[355867874,1741653053200,-500.0,0.000488,2]
[355867875,1741653053212,-500.0,0.000488,2]
[355867876,1741653053222,-500.0,0.000488,2]
[355867877,1741653053232,-500.0,0.000488,2]
[355867878,1741653053242,-500.0,0.000488,2]
[355867879,1741653053254,-500.0,0.000488,2]
[355867880,1741653053264,-500.0,0.000488,2]
[355867881,1741653053274,-500.0,0.000488,2]
[355867882,1741653053284,-500.0,0.000488,2]
[355867883,1741653053295,-500.0,0.000488,2]
[355867884,1741653053305,-500.0,0.000488,2]
[355867885,1741653053315,-500.0,0.000488,2]
[355867886,1741653053325,-500.0,0.000488,2]
[355867887,1741653053334,-500.0,0.000488,2]
[355867888,1741653053344,-500.0,0.000488,2]
[355867889,1741653053354,-500.0,0.000488,2]
[355867890,1741653053364,-500.0,0.000488,2]
[355867891,1741653053374,-500.0,0.000488,2]
[355867892,1741653053383,-500.0,0.000488,2]
[355867893,1741653053394,-500.0,0.000488,2]
[355867894,1741653053403,-500.0,0.000488,2]
[355867895,1741653053413,-500.0,0.000488,2]
[355867896,1741653053423,-768.77293019,0.000488,2]
[355867897,1741653053433,-500.0,0.00048819,120]
[355867898,1741653053443,-677.0505853,0.00048831,91]
[355867899,1741653053453,-77181.52304206,0.00048835,120]
[355867900,1741653053463,-1000.0,0.00048921,10]
[355867901,1741653053472,-677.0505853,0.00048931,98]
[355867902,1741653053482,-508.21556026,0.0004897,60]
[355867903,1741653053492,-601.3447221,0.00048976,2]
[355867904,1741653053503,-971.0,0.00049,10]
[355867905,1741653053513,-7263.0,0.00049,2]
[355867906,1741653053522,-150.0,0.00049,120]
[355867907,1741653053532,-416.66666667,0.00049,7]
[355867908,1741653053541,-677.0505853,0.00049031,94]
[355867909,1741653053551,-500.0,0.00049093,120]
[355867910,1741653053561,-10025.34169551,0.000491,2]
[355867911,1741653053571,-181.08010149,0.00049117,2]
[355867912,1741653053581,-677.0505853,0.00049131,90]
[355867913,1741653053591,-677.0505853,0.00049231,91]
[355867914,1741653053600,-500.0,0.00049259,120]
[355867915,1741653053609,-202.92,0.00049267,30]
[355867916,1741653053620,-500.0,0.00049315,120]
[355867917,1741653053631,-210.0,0.00049315,120]
[355867918,1741653053640,-150.0,0.00049315,7]
[355867919,1741653053649,-150.0,0.00049315,10]
[355867920,1741653053659,-150.0,0.00049315,10]
[355867921,1741653053671,-50000.0,0.00049315,30]
[355867922,1741653053681,-288.495928,0.00049315,120]
[355867923,1741653053691,-288.495928,0.00049315,120]
[355867924,1741653053701,-288.495928,0.00049315,120]
[355867925,1741653053711,-288.495928,0.00049315,120]
[355867926,1741653053721,-288.495928,0.00049315,120]
[355867927,1741653053731,-288.495928,0.00049315,120]
[355867928,1741653053740,-288.495928,0.00049315,120]
[355867929,1741653053754,-288.495928,0.00049315,120]
[355867930,1741653053764,-288.495928,0.00049315,120]
[355867931,1741653053773,-288.495928,0.00049315,120]
[355867932,1741653053783,-288.495928,0.00049315,120]
[355867933,1741653053793,-288.495928,0.00049315,120]
[355867934,1741653053803,-288.495928,0.00049315,120]
[355867935,1741653053812,-288.495928,0.00049315,120]
[355867936,1741653053821,-288.495928,0.00049315,120]
[355867937,1741653053831,-288.495928,0.00049315,120]
[355867938,1741653053841,-288.495928,0.00049315,120]
[355867939,1741653053851,-288.495928,0.00049315,120]
[355867940,1741653053861,-288.495928,0.00049315,120]
[355867941,1741653053871,-288.49593381,0.00049315,120]
[355867942,1741653053881,-654.726666,0.00049315,7]
[355867943,1741653053890,-654.726666,0.00049315,7]
[355867944,1741653053899,-654.726666,0.00049315,7]
[355867945,1741653053909,-654.726666,0.00049315,7]
[355867946,1741653053919,-654.726666,0.00049315,7]
[355867947,1741653053928,-654.726666,0.00049315,7]
[355867948,1741653053938,-654.726666,0.00049315,7]
[355867949,1741653053948,-654.726666,0.00049315,7]
[355867950,1741653053957,-654.726666,0.00049315,7]
[355867951,1741653053967,-654.726666,0.00049315,7]
[355867952,1741653053976,-654.726666,0.00049315,7]
[355867953,1741653053986,-654.726666,0.00049315,7]
[355867954,1741653053998,-654.726666,0.00049315,7]
[355867955,1741653054008,-654.726666,0.00049315,7]
[355867956,1741653054018,-654.726666,0.00049315,7]
[355867957,1741653054028,-654.726666,0.00049315,7]
[355867958,1741653054038,-654.726666,0.00049315,7]
[355867959,1741653054048,-654.726666,0.00049315,7]
[355867960,1741653054057,-654.726666,0.00049315,7]
[355867961,1741653054067,-654.726656,0.00049315,7]
[355867962,1741653054076,-565.465931,0.00049315,120]
[355867963,1741653054086,-677.0505853,0.00049331,98]
[355867964,1741653054096,-500.0,0.00049367,120]
[355867965,1741653054105,-765.46,0.000494,30]
[355867966,1741653054115,-27028.61033659,0.000494,120]
[355867967,1741653054125,-7834.01,0.000494,30]
[355867968,1741653054135,-606.36,0.000494,30]
[355867969,1741653054144,-539.66872395,0.00049417,28]
[355867970,1741653054154,-677.0505853,0.00049431,91]
[355867971,1741653054164,-940.98232515,0.00049468,10]
[355867972,1741653054174,-158.47381,0.00049475,60]
[355867973,1741653054184,-10000.0,0.000495,40]
[355867974,1741653054194,-11685.62982151,0.000495,2]
[355867975,1741653054203,-47776.45,0.000495,30]
[355867976,1741653054213,-50000.0,0.000495,30]
[355867977,1741653054223,-25676.43,0.000495,30]
[355867978,1741653054232,-536.05,0.000495,30]
[355867979,1741653054242,-164.93,0.000495,30]
[355867980,1741653054253,-657.52,0.000495,30]
[355867981,1741653054263,-5000.0,0.000495,120]
[355867982,1741653054273,-1896.26,0.000495,2]
[355867983,1741653054283,-759.54,0.000495,30]
[355867984,1741653054293,-677.0505853,0.00049531,99]
[355867985,1741653054303,-677.0505853,0.00049631,93]
[355867986,1741653054312,-500.0,0.00049641,120]
[355867987,1741653054322,-708.8,0.00049661,60]
[355867988,1741653054332,-187.78006525,0.00049665,2]
[355867989,1741653054342,-2000.0,0.00049688,4]
[355867990,1741653054352,-677.0505853,0.00049731,98]
[355867991,1741653054361,-2000.0,0.00049733,4]
[355867992,1741653054371,-152.96670074,0.00049764,20]
[355867993,1741653054381,-2000.0,0.00049777,4]
[355867994,1741653054390,-2000.0,0.00049822,4]
[355867995,1741653054400,-677.0505853,0.00049831,93]
[355867996,1741653054409,-483.13454319,0.00049844,40]
[355867997,1741653054419,-500.0,0.00049863,120]
[355867998,1741653054429,-250.0,0.00049863,7]
[355867999,1741653054438,-250.0,0.00049863,10]
[355868000,1741653054448,-151.0,0.00049863,10]
[355868001,1741653054458,-2000.0,0.00049866,4]
[355868002,1741653054468,-300.0,0.000499,27]
[355868003,1741653054478,-2000.0,0.00049911,4]
[355868004,1741653054488,-500.0,0.00049915,120]
[355868005,1741653054499,-677.0505853,0.00049931,99]
[355868006,1741653054509,-500.0,0.00049944,120]
[355868007,1741653054518,-2000.0,0.00049955,4]
[355868008,1741653054529,-242.31464648,0.00049999,30]
[355868009,1741653054539,-999.99999901,0.00049999,2]
[355868010,1741653054549,-10000.0,0.0005,50]
[355868011,1741653054559,-200.0,0.0005,5]
[355868012,1741653054568,-2506.27814953,0.0005,7]
[355868013,1741653054578,-1005.78940074,0.0005,10]
[355868014,1741653054587,-10000.0,0.0005,30]
[355868015,1741653054597,-765.46,0.0005,30]
[355868016,1741653054606,-525.43880399,0.0005,10]
[355868017,1741653054616,-90528.54164485,0.0005,10]
[355868018,1741653054629,-1003.11643765,0.0005,120]
[355868019,1741653054639,-4373.16869977,0.0005,120]
[355868020,1741653054806,-199.9,0.0005,120]
[355868021,1741653054816,-268.172,0.0005,5]
[355868022,1741653054826,-677.0505853,0.00050031,99]
[355868023,1741653054836,-7834.01,0.000501,30]
[355868024,1741653054845,-606.36,0.000501,30]